bitfinex/quotes_SOLUSD_20250604
["timestamp","ask_amount","ask_price","bid_price","bid_amount"]
[1749047887044,26.0,155.6,155.5,0.28432314]
[1749047887252,26.0,155.6,155.5,0.42648471]
[1749047889148,18.64964886,155.59,155.5,0.14216157]
[1749047889532,18.64964886,155.59,155.49,6.5017]
[1749047889738,26.0,155.56,155.49,6.5017]
[1749047891635,26.0,155.56,155.47,1.6016]
[1749047891953,26.0,155.54,155.46,0.42648471]
[1749047892125,26.0,155.54,155.45,6.2451]
[1749047892530,26.0,155.5,155.43,6.72756107]
[1749047892945,26.0,155.5,155.41,6.2625]
[1749047893669,26.0,155.5,155.42,0.14216157]
[1749047893961,26.0,155.5,155.42,0.28432314]
[1749047894651,26.0,155.5,155.42,0.42648471]
[1749047895879,26.0,155.5,155.43,4.82001273]
[1749047896037,26.0,155.5,155.44,4.82005463]
[1749047897041,26.0,155.5,155.45,4.82030478]
[1749047897355,26.0,155.5,155.44,4.82005463]
[1749047898059,18.64964886,155.53,155.45,4.82013111]
[1749047898247,18.64964886,155.53,155.44,4.82005463]
[1749047898452,26.0,155.5,155.45,0.14216157]
[1749047898647,20.16474886,155.55,155.45,0.14216157]
[1749047898855,26.0,155.54,155.45,0.42648471]
[1749047899028,1.5151,155.55,155.46,0.14216157]
[1749047899527,26.0,155.54,155.47,4.81942264]
[1749047899770,26.0,155.54,155.46,0.14216157]
[1749047900133,1.5151,155.55,155.46,0.14216157]
[1749047900351,26.0,155.54,155.46,0.14216157]
[1749047900740,26.0,155.54,155.47,4.8191654]
[1749047900939,26.0,155.54,155.46,0.14216157]
[1749047901836,26.0,155.54,155.47,4.81911219]
[1749047902049,26.0,155.54,155.46,0.14216157]
[1749047904080,1.5151,155.55,155.45,1.86712314]
[1749047904081,26.0,155.52,155.45,1.5828]
[1749047904385,26.0,155.52,155.45,1.72496157]
[1749047904744,26.0,155.52,155.45,1.5828]
[1749047905445,26.0,155.52,155.44,4.82005463]
[1749047905845,18.64964886,155.51,155.44,4.82005463]
[1749047908352,26.0,155.48,155.44,4.82005463]
[1749047910053,1.6339,155.53,155.44,4.82005463]
[1749047910285,26.0,155.5,155.44,4.82005463]
[1749047913865,18.79181043,155.51,155.44,4.82005463]
[1749047914082,1.6339,155.53,155.44,4.82005463]
[1749047914253,10.91546754,155.58,155.45,0.42648471]
[1749047914254,18.64964886,155.56,155.45,0.42648471]
[1749047914456,26.0,155.53,155.45,0.42648471]
[1749047918870,26.0,155.53,155.45,0.14216157]
[1749047919683,26.0,155.49,155.44,6.46775463]
[1749047919980,26.0,155.53,155.45,0.14216157]
[1749047924264,18.64964886,155.52,155.44,6.46775463]
[1749047924582,18.64964886,155.52,155.44,4.82005463]
[1749047929077,26.0,155.49,155.44,4.82005463]
[1749047929883,1.5943,155.51,155.44,4.82005463]
[1749047930087,26.0,155.5,155.45,0.14216157]
[1749047932496,18.64964886,155.54,155.44,4.82005463]
[1749047932497,26.0,155.51,155.44,4.82005463]
[1749047933181,26.0,155.51,155.45,0.14216157]
[1749047935702,26.0,155.51,155.44,4.82005463]
[1749047936611,18.64964886,155.5,155.44,4.82005463]
[1749047936913,26.0,155.47,155.44,4.82005463]
[1749047940313,26.0,155.48,155.44,4.82005463]
[1749047942203,18.64964886,155.52,155.44,4.82005463]
[1749047942519,26.0,155.49,155.44,4.82005463]
[1749047946791,26.0,155.5,155.45,0.14216157]
[1749047946993,90.5089,155.53,155.45,0.14216157]
[1749047946994,1.5089,155.53,155.45,0.14216157]
[1749047947201,26.0,155.52,155.45,0.42648471]
[1749047947405,26.0,155.52,155.45,25.59969514]
[1749047947738,1.6153,155.57,155.45,25.59969514]
[1749047948034,26.0,155.55,155.45,25.59969514]
[1749047948193,1.6153,155.57,155.45,25.59969514]
[1749047948397,26.0,155.55,155.45,25.59969514]
[1749047950432,26.0,155.55,155.45,6.80788471]
[1749047950591,26.0,155.55,155.45,6.66572314]
[1749047950975,1.6153,155.57,155.44,4.82005463]
[1749047950976,26.0,155.51,155.44,4.82005463]
[1749047951434,26.0,155.5,155.44,4.82005463]
[1749047960223,1.6607,155.55,155.45,0.42648471]
[1749047960449,26.0,155.54,155.45,0.42648471]
[1749047969541,26.0,155.54,155.45,0.14216157]
[1749047969835,26.0,155.5,155.44,4.82005463]
[1749047972065,26.0,155.52,155.44,4.82005463]
[1749047972953,26.0,155.5,155.44,4.82005463]
[1749047973157,27.6064,155.5,155.44,4.82005463]
[1749047974741,18.64964886,155.49,155.44,4.82005463]
[1749047974941,26.0,155.46,155.44,4.82005463]
[1749047977467,1.6064,155.5,155.44,4.82005463]
[1749047977775,26.0,155.49,155.44,4.82005463]
[1749047979752,26.0,155.51,155.44,4.82005463]
[1749047983450,18.64964886,155.5,155.44,4.82005463]
[1749047987363,26.0,155.49,155.44,4.82005463]
[1749047988254,26.0,155.51,155.45,6.76978471]
[1749047988449,18.64964886,155.55,155.45,6.76978471]
[1749047988756,26.0,155.54,155.45,6.76978471]
[1749047994285,26.0,155.54,155.46,0.14216157]
[1749047994486,107.64964886,155.57,155.47,0.14216157]
[1749047994487,26.0,155.56,155.47,0.14216157]
[1749047994661,26.0,155.56,155.47,19.07613357]
[1749047994863,26.0,155.56,155.48,0.28432314]
[1749047995181,1.6453,155.58,155.48,0.28432314]
[1749047995364,18.64964886,155.6,155.5,0.56864628]
[1749047995571,26.0,155.59,155.5,0.56864628]
[1749047995761,26.0,155.6,155.5,0.56864628]
[1749047996185,26.0,155.6,155.5,6.71564628]
[1749047996382,18.64964886,155.61,155.5,6.71564628]
[1749047996593,26.0,155.58,155.5,6.71564628]
[1749048002463,26.0,155.58,155.5,6.147]
[1749048002669,26.0,155.58,155.48,0.14216157]
[1749048003081,26.0,155.58,155.48,0.28432314]
[1749048003471,26.0,155.58,155.48,0.56864628]
[1749048004370,18.64964886,155.57,155.48,0.42648471]
[1749048004672,1.5314,155.56,155.48,0.14216157]
[1749048005263,1.5314,155.56,155.48,18.79181043]
[1749048005468,26.0,155.56,155.49,0.14216157]
[1749048009394,26.0,155.56,155.47,0.14216157]
[1749048009575,26.0,155.56,155.47,0.56864628]
[1749048009775,26.0,155.56,155.47,0.28432314]
[1749048009986,26.0,155.56,155.47,0.56864628]
[1749048010675,26.0,155.56,155.47,19.21829514]
[1749048011302,26.0,155.56,155.49,0.28432314]
[1749048011600,26.0,155.57,155.49,0.56864628]
[1749048011799,26.0,155.57,155.51,0.28432314]
[1749048013801,26.0,155.57,155.5,0.14216157]
[1749048014097,26.0,155.59,155.5,0.42648471]
[1749048014295,26.0,155.59,155.5,0.28432314]
[1749048014814,26.0,155.59,155.5,0.14216157]
[1749048017700,26.0,155.59,155.5,0.28432314]
[1749048018624,27.5314,155.6,155.52,0.42648471]
[1749048018819,6.4533,155.63,155.52,0.56864628]
[1749048019131,1.5496,155.64,155.52,19.21829514]
[1749048019295,26.0,155.63,155.52,19.21829514]
[1749048019696,26.0,155.63,155.52,24.32327514]
[1749048020231,1.5496,155.64,155.52,24.32327514]
[1749048020402,26.0,155.63,155.52,24.32327514]
[1749048021324,26.0,155.63,155.54,19.21829514]
[1749048022107,1.5496,155.64,155.54,19.21829514]
[1749048022310,27.5496,155.64,155.54,19.21829514]
[1749048022828,26.0,155.62,155.54,0.14216157]
[1749048023121,26.0,155.62,155.54,0.56864628]
[1749048023323,26.0,155.62,155.54,0.14216157]
[1749048023497,26.0,155.62,155.54,0.56864628]
[1749048026505,26.0,155.62,155.52,19.21829514]
[1749048030823,27.5496,155.64,155.52,19.21829514]
[1749048032220,1.5496,155.64,155.52,19.21829514]
[1749048032423,27.5496,155.64,155.52,165.21829514]
[1749048032622,27.5496,155.64,155.52,19.21829514]
[1749048034627,27.5496,155.64,155.52,39.21829514]
[1749048035210,1.5496,155.64,155.52,39.21829514]
[1749048035621,27.5496,155.64,155.52,65.21829514]
[1749048036007,27.5496,155.64,155.52,45.21829514]
[1749048036512,27.5496,155.64,155.56,0.56864628]
[1749048042840,26.0,155.6,155.52,18.64964886]
[1749048043030,26.0,155.6,155.53,0.14216157]
[1749048043225,26.0,155.6,155.53,0.56864628]
[1749048043548,26.0,155.59,155.53,0.14216157]
[1749048043928,26.0,155.59,155.53,0.56864628]
[1749048044331,26.0,155.59,155.53,0.14216157]
[1749048044542,26.0,155.59,155.53,0.56864628]
[1749048044845,26.0,155.59,155.53,0.42648471]
[1749048045161,26.0,155.59,155.53,0.56864628]
[1749048045866,27.5496,155.64,155.55,0.28432314]
[1749048046025,26.0,155.63,155.55,0.28432314]
[1749048046425,26.0,155.63,155.55,0.14216157]
[1749048048575,27.5021,155.58,155.48,26.0]
[1749048048727,27.5021,155.58,155.49,18.79181043]
[1749048049145,27.5021,155.58,155.5,0.42648471]
[1749048049533,1.5021,155.58,155.5,0.42648471]
[1749048051732,32.5083,155.61,155.5,0.42648471]
[1749048051931,26.0,155.61,155.53,0.56864628]
[1749048052130,26.0,155.61,155.55,0.28432314]
[1749048052970,26.0,155.61,155.55,0.14216157]
[1749048053839,1.5058,155.62,155.55,0.28432314]
[1749048054039,27.5058,155.62,155.55,0.28432314]
[1749048054441,1.5058,155.62,155.55,0.56864628]
[1749048056041,27.5058,155.62,155.55,0.56864628]
[1749048056368,27.5058,155.62,155.55,0.14216157]
[1749048056739,27.5058,155.62,155.54,0.14216157]
[1749048058477,27.5058,155.62,155.53,0.56864628]
[1749048059065,27.5058,155.62,155.53,0.14216157]
[1749048062349,27.5058,155.62,155.52,0.14216157]
[1749048063142,27.5058,155.62,155.56,0.14216157]
[1749048063470,27.5058,155.62,155.56,0.28432314]
[1749048065652,32.1186,155.65,155.56,0.56864628]
[1749048065961,6.1186,155.65,155.58,0.28432314]
[1749048066150,1.5709,155.66,155.58,0.28432314]
[1749048066351,26.0,155.65,155.58,0.28432314]
[1749048069150,26.0,155.65,155.58,0.56864628]
[1749048069350,1.5709,155.66,155.58,0.56864628]
[1749048069585,1.5709,155.66,155.6,0.28432314]
[1749048070154,1.5709,155.66,155.6,0.56864628]
[1749048070360,26.0,155.68,155.6,0.56864628]
[1749048073078,26.0,155.66,155.54,7.8792]
[1749048073379,1.5634,155.65,155.55,18.79181043]
[1749048073759,1.5634,155.65,155.56,0.42648471]
[1749048074656,1.5634,155.65,155.55,18.79181043]
[1749048075178,1.5634,155.65,155.56,0.14216157]
[1749048075383,1.5634,155.65,155.56,0.28432314]
[1749048076104,26.0,155.61,155.53,0.14216157]
[1749048076449,26.0,155.61,155.53,0.56864628]
[1749048076655,26.0,155.61,155.53,0.42648471]
[1749048077385,26.0,155.61,155.53,0.56864628]
[1749048077891,26.0,155.61,155.5,7.6616]
[1749048078187,18.64964886,155.58,155.45,0.14216157]
[1749048078396,26.0,155.55,155.45,0.14216157]
[1749048078574,26.0,155.55,155.45,18.79181043]
[1749048078762,26.0,155.55,155.47,0.14216157]
[1749048079162,26.0,155.55,155.47,0.56864628]
[1749048079895,26.0,155.55,155.44,7.7532]
[1749048080109,26.0,155.55,155.45,18.79181043]
[1749048080302,26.0,155.55,155.46,0.42648471]
[1749048080465,26.0,155.55,155.45,18.79181043]
[1749048080792,26.0,155.55,155.46,0.28432314]
[1749048081570,26.0,155.55,155.46,0.42648471]
[1749048082681,26.0,155.55,155.48,0.28432314]
[1749048082895,26.0,155.57,155.48,0.28432314]
[1749048083274,26.0,155.57,155.48,19.21829514]
[1749048083788,1.6129,155.59,155.48,19.21829514]
[1749048084183,26.0,155.58,155.48,19.21829514]
[1749048088578,26.0,155.58,155.51,18.64964886]
[1749048088900,26.0,155.61,155.54,0.28432314]
[1749048089809,27.6625,155.63,155.54,0.28432314]
[1749048091305,27.6625,155.63,155.54,0.14216157]
[1749048092125,27.6625,155.63,155.54,0.42648471]
[1749048092307,27.6625,155.63,155.54,0.56864628]
[1749048097616,27.6625,155.63,155.56,0.28432314]
[1749048098336,26.0,155.65,155.58,0.28432314]
[1749048098917,26.0,155.66,155.58,0.28432314]
[1749048099714,26.0,155.66,155.58,0.14216157]
[1749048104812,26.0,155.66,155.58,0.28432314]
[1749048107012,26.0,155.66,155.6,0.28432314]
[1749048107218,6.2518,155.7,155.6,0.56864628]
[1749048107635,26.0,155.67,155.6,0.56864628]
[1749048108624,26.0,155.67,155.6,0.42648471]
[1749048109433,26.0,155.67,155.59,0.28432314]
[1749048110113,26.0,155.66,155.59,0.14216157]
[1749048115064,26.0,155.66,155.59,18.933972]
[1749048120555,26.0,155.66,155.59,0.28432314]
[1749048120745,26.0,155.66,155.59,0.14216157]
[1749048121153,26.0,155.66,155.59,0.42648471]
[1749048121870,26.0,155.66,155.59,19.21829514]
[1749048123767,26.0,155.66,155.59,0.56864628]
[1749048124268,26.0,155.66,155.59,0.42648471]
[1749048125056,1.519,155.66,155.55,7.7061]
[1749048125267,26.0,155.65,155.56,0.14216157]
[1749048125439,26.0,155.65,155.56,0.56864628]
[1749048125641,26.0,155.65,155.56,19.07613357]
[1749048125953,26.0,155.65,155.57,0.14216157]
[1749048127268,26.0,155.65,155.56,0.42648471]
[1749048127438,26.0,155.65,155.56,0.56864628]
[1749048130368,32.4559,155.65,155.54,0.28432314]
[1749048132388,32.4559,155.65,155.53,0.56864628]
[1749048132741,26.0,155.61,155.53,0.28432314]
[1749048132980,1.5178,155.6,155.53,0.28432314]
[1749048133451,1.5178,155.6,155.53,0.56864628]
[1749048137866,1.5178,155.6,155.53,0.28432314]
[1749048140259,1.5178,155.6,155.53,0.14216157]
[1749048142765,26.0,155.61,155.53,0.14216157]
[1749048143494,26.0,155.61,155.54,0.28432314]
[1749048147892,26.0,155.61,155.52,19.07613357]
[1749048148775,26.0,155.62,155.53,0.14216157]
[1749048153684,26.0,155.62,155.54,0.28432314]
[1749048165019,26.0,155.62,155.53,0.14216157]
[1749048165318,26.0,155.62,155.52,0.28432314]
[1749048165625,26.0,155.62,155.52,0.56864628]
[1749048171504,26.0,155.58,155.52,0.42648471]
[1749048171718,26.0,155.57,155.48,0.14216157]
[1749048172224,26.0,155.57,155.48,0.56864628]
[1749048172920,26.0,155.57,155.48,0.28432314]
[1749048173126,26.0,155.57,155.48,0.42648471]
[1749048173928,26.0,155.57,155.48,0.56864628]
[1749048180247,26.0,155.57,155.5,0.56864628]
[1749048180436,26.0,155.58,155.52,0.28432314]
[1749048182755,1.5175,155.59,155.52,0.28432314]
[1749048185228,1.5175,155.59,155.5,0.14216157]
[1749048185448,1.5175,155.59,155.5,0.56864628]
[1749048185833,1.5175,155.59,155.52,0.28432314]
[1749048188540,1.5175,155.59,155.5,0.14216157]
[1749048188743,1.5175,155.59,155.5,19.21829514]
[1749048189651,1.5175,155.59,155.5,0.56864628]
[1749048190034,1.5175,155.59,155.5,0.28432314]
[1749048190238,1.5175,155.59,155.5,0.56864628]
[1749048190853,26.0,155.56,155.5,0.42648471]
[1749048191947,26.0,155.56,155.48,0.14216157]
[1749048192334,26.0,155.56,155.48,0.56864628]
[1749048192749,26.0,155.55,155.46,26.0]
[1749048192950,26.0,155.55,155.47,0.14216157]
[1749048195543,26.0,155.55,155.46,0.56864628]
[1749048201559,1.5985,155.54,155.44,0.56864628]
[1749048206370,1.5985,155.54,155.44,19.21829514]
[1749048206541,1.5985,155.54,155.45,0.28432314]
[1749048206745,1.5985,155.54,155.47,0.28432314]
[1749048206972,1.5985,155.54,155.46,0.28432314]
[1749048207168,1.5985,155.54,155.48,0.42648471]
[1749048207371,1.5985,155.54,155.48,0.28432314]
[1749048207570,1.5985,155.54,155.49,4.81773229]
[1749048207760,26.0,155.55,155.48,0.28432314]
[1749048208853,26.0,155.56,155.47,19.21829514]
[1749048209065,26.0,155.56,155.5,0.56864628]
[1749048209267,1.5318,155.58,155.5,0.56864628]
[1749048209464,26.0,155.57,155.49,0.56864628]
[1749048209852,1.6115,155.62,155.52,0.56864628]
[1749048210266,26.0,155.6,155.52,0.56864628]
[1749048215671,1.6115,155.62,155.54,0.56864628]
[1749048216475,26.0,155.63,155.54,8.35834628]
[1749048216660,20.17524886,155.66,155.54,8.35834628]
[1749048217058,26.0,155.63,155.54,8.35834628]
[1749048218575,26.0,155.63,155.54,8.47834628]
[1749048231185,26.0,155.63,155.54,8.35834628]
[1749048231772,20.17524886,155.66,155.54,8.35834628]
[1749048231980,26.0,155.63,155.54,8.35834628]
[1749048232388,26.0,155.63,155.55,18.64964886]
[1749048232599,26.0,155.63,155.56,0.56864628]
[1749048235780,26.0,155.63,155.55,0.56864628]
[1749048235988,26.0,155.63,155.55,0.28432314]
[1749048236202,26.0,155.63,155.55,0.56864628]
[1749048239697,44.64964886,155.65,155.55,0.56864628]
[1749048254785,26.0,155.64,155.55,2.08224628]
[1749048255409,26.0,155.64,155.57,0.28432314]
[1749048256104,26.0,155.64,155.59,0.42648471]
[1749048259489,26.0,155.65,155.56,0.56864628]
[1749048259690,1.5256,155.66,155.58,0.56864628]
[1749048259886,26.1022154,155.68,155.58,0.56864628]
[1749048264009,26.0,155.65,155.58,0.56864628]
[1749048265824,26.0,155.66,155.58,0.56864628]
[1749048267190,21.0,155.66,155.58,0.56864628]
[1749048267924,21.0,155.66,155.58,26.56864628]
[1749048269425,0.1022154,155.68,155.59,18.64964886]
[1749048269722,0.1022154,155.68,155.63,0.56864628]
[1749048270028,0.1022154,155.68,155.63,26.56864628]
[1749048270232,0.1022154,155.68,155.65,0.28432314]
[1749048270602,0.1022154,155.68,155.65,0.56864628]
[1749048270803,0.1022154,155.68,155.67,45.21829514]
[1749048272627,1.6357,155.82,155.73,0.14216157]
[1749048272932,1.6357,155.82,155.73,0.42648471]
[1749048274117,27.6357,155.82,155.73,0.42648471]
[1749048276942,27.6357,155.82,155.72,0.56864628]
[1749048277533,18.64964886,155.81,155.72,0.28432314]
[1749048277833,18.64964886,155.81,155.72,0.56864628]
[1749048278006,26.0,155.8,155.72,0.56864628]
[1749048283439,26.0,155.8,155.69,0.28432314]
[1749048283938,26.0,155.8,155.69,0.56864628]
[1749048284728,26.0,155.8,155.7,0.12]
[1749048285638,18.64964886,155.79,155.7,0.12]
[1749048285842,18.64964886,155.79,155.69,0.42648471]
[1749048286139,18.64964886,155.79,155.69,0.56864628]
[1749048286832,26.0,155.76,155.69,0.14216157]
[1749048287038,27.5317,155.76,155.69,0.14216157]
[1749048287712,1.5771,155.8,155.71,0.56864628]
[1749048288130,1.5771,155.8,155.71,2.11074628]
[1749048291346,1.5771,155.8,155.71,1.96858471]
[1749048291523,1.5771,155.8,155.72,0.14216157]
[1749048291724,1.5771,155.8,155.71,1.96858471]
[1749048291926,26.0,155.78,155.71,1.96858471]
[1749048292444,26.0,155.78,155.72,0.14216157]
[1749048292636,26.0,155.78,155.71,0.28432314]
[1749048292825,26.0,155.78,155.71,0.42648471]
[1749048293155,26.0,155.78,155.71,0.28432314]
[1749048293449,26.0,155.78,155.71,0.56864628]
[1749048294621,1.5771,155.8,155.71,0.56864628]
[1749048294823,26.0,155.78,155.71,0.56864628]
[1749048295338,1.5771,155.8,155.71,0.56864628]
[1749048295549,26.0,155.82,155.73,0.56864628]
[1749048298349,26.0,155.82,155.71,0.56864628]
[1749048299440,18.64964886,155.81,155.73,0.14216157]
[1749048299647,18.64964886,155.81,155.73,0.42648471]
[1749048301824,26.0,155.82,155.73,0.56864628]
[1749048302158,26.0,155.81,155.73,0.56864628]
[1749048307458,18.64964886,155.8,155.7,0.14216157]
[1749048307633,18.64964886,155.8,155.7,26.28432314]
[1749048307830,26.0,155.77,155.7,0.28432314]
[1749048308030,26.0,155.77,155.7,0.14216157]
[1749048310533,26.0,155.76,155.69,0.28432314]
[1749048310740,26.0,155.76,155.69,0.14216157]
[1749048310937,26.0,155.76,155.69,0.28432314]
[1749048311166,26.0,155.76,155.69,0.56864628]
[1749048311461,26.0,155.76,155.69,0.42648471]
[1749048311661,26.0,155.76,155.69,0.56864628]
[1749048314272,26.0,155.76,155.68,0.56864628]
[1749048319652,26.0,155.76,155.68,0.56864628]
[1749048321805,1.5067,155.82,155.71,0.56864628]
[1749048322152,27.5067,155.82,155.71,0.56864628]
[1749048322860,27.5067,155.82,155.71,0.68864628]
[1749048323060,27.5067,155.82,155.73,0.56864628]
[1749048323288,1.5067,155.82,155.73,7.00454628]
[1749048323783,26.0,155.83,155.73,7.00454628]
[1749048324287,22.81031772,155.86,155.75,0.56864628]
[1749048324452,26.0,155.83,155.75,0.56864628]
[1749048325067,22.81031772,155.86,155.75,0.56864628]
[1749048325466,26.0,155.83,155.75,0.56864628]
[1749048325975,26.0,155.83,155.75,0.42648471]
[1749048326273,26.0,155.83,155.74,0.14216157]
[1749048326453,26.0,155.83,155.74,0.40432314]
[1749048326651,26.0,155.83,155.74,0.56864628]
[1749048333577,18.64964886,155.82,155.74,0.28432314]
[1749048333965,18.64964886,155.82,155.74,0.56864628]
[1749048334168,18.64964886,155.82,155.74,0.42648471]
[1749048334364,18.64964886,155.82,155.74,0.56864628]
[1749048334788,18.64964886,155.82,155.74,0.42648471]
[1749048334966,18.64964886,155.82,155.74,0.28432314]
[1749048335691,18.64964886,155.82,155.74,0.42648471]
[1749048336397,33.9697,155.81,155.74,0.14216157]
[1749048336696,18.64964886,155.8,155.71,0.40432314]
[1749048336887,18.64964886,155.8,155.71,0.26216157]
[1749048337289,18.64964886,155.8,155.71,0.42648471]
[1749048338785,18.64964886,155.8,155.71,0.14216157]
[1749048339382,18.64964886,155.76,155.68,6.6513]
[1749048339685,20.23064886,155.76,155.68,0.56864628]
[1749048340402,20.23064886,155.76,155.68,0.28432314]
[1749048342477,20.23064886,155.76,155.66,0.56864628]
[1749048342801,26.0,155.78,155.69,6.0123]
[1749048342993,26.0,155.78,155.7,0.56864628]
[1749048343180,1.5496,155.8,155.7,26.56864628]
[1749048344672,26.0,155.79,155.7,26.56864628]
[1749048346019,26.0,155.78,155.7,0.56864628]
[1749048355502,26.0,155.78,155.7,2.17574628]
[1749048359785,26.0,155.74,155.68,146.0]
[1749048359999,26.0,155.74,155.69,0.14216157]
[1749048360391,27.6645,155.74,155.67,0.14216157]
[1749048360591,26.0,155.72,155.63,0.14216157]
[1749048361187,26.0,155.72,155.63,0.56864628]
[1749048361396,26.0,155.72,155.63,0.14216157]
[1749048362008,26.0,155.72,155.63,0.56864628]
[1749048362324,26.0,155.72,155.63,0.42648471]
[1749048362496,26.0,155.72,155.63,0.56864628]
[1749048364208,26.0,155.72,155.64,18.64964886]
[1749048364400,26.0,155.72,155.65,0.56864628]
[1749048366524,26.0,155.72,155.63,0.56864628]
[1749048366723,26.0,155.72,155.63,0.28432314]
[1749048366924,26.0,155.68,155.63,0.14216157]
[1749048367812,26.0,155.7,155.63,0.14216157]
[1749048371021,18.64964886,155.69,155.59,0.14216157]
[1749048371222,26.0,155.66,155.59,0.56864628]
[1749048371528,26.0,155.65,155.59,0.14216157]
[1749048372105,26.0,155.65,155.59,0.56864628]
[1749048372906,26.0,155.65,155.59,0.42648471]
[1749048373324,26.0,155.65,155.59,0.56864628]
[1749048374833,26.0,155.65,155.58,0.14216157]
[1749048375014,26.0,155.65,155.56,0.14216157]
[1749048375214,26.0,155.65,155.58,0.12]
[1749048375721,26.0,155.65,155.55,0.56864628]
[1749048376127,26.0,155.65,155.55,0.68864628]
[1749048376956,26.0,155.65,155.55,0.56864628]
[1749048377837,26.0,155.61,155.55,0.56864628]
[1749048378856,26.0,155.63,155.55,0.56864628]
[1749048385061,26.0,155.63,155.53,6.5177]
[1749048385062,26.0,155.63,155.54,0.56864628]
[1749048385267,26.0,155.65,155.56,0.56864628]
[1749048391026,26.0,155.65,155.55,0.56864628]
[1749048392102,26.0,155.65,155.55,19.21829514]
[1749048392307,26.0,155.65,155.57,0.56864628]
[1749048404710,1.5164,155.67,155.59,0.56864628]
[1749048404915,1.5278,155.71,155.63,0.56864628]
[1749048408747,26.0,155.73,155.65,0.56864628]
[1749048409115,1.5771,155.75,155.67,0.56864628]
[1749048409336,26.0,155.73,155.67,0.56864628]
[1749048409541,1.5771,155.75,155.67,0.56864628]
[1749048409928,1.5873,155.79,155.69,0.56864628]
[1749048410319,26.0,155.77,155.69,0.56864628]
[1749048410745,1.5873,155.79,155.69,0.56864628]
[1749048411174,26.0,155.77,155.69,0.56864628]
[1749048419555,26.0,155.77,155.71,0.56864628]
[1749048430639,1.5873,155.79,155.73,0.56864628]
[1749048430835,26.0,155.81,155.73,0.56864628]
[1749048431439,1.6397,155.83,155.73,0.56864628]
[1749048431637,26.0,155.81,155.73,0.56864628]
[1749048434371,26.0,155.81,155.72,18.64964886]
[1749048434372,26.0,155.81,155.72,0.14216157]
[1749048434538,26.0,155.81,155.72,0.56864628]
[1749048434742,26.0,155.81,155.72,19.21829514]
[1749048436645,26.0,155.81,155.74,0.56864628]
[1749048439092,26.0,155.81,155.76,0.56864628]
[1749048442872,26.0,155.85,155.76,0.56864628]
[1749048443588,26.0,155.85,155.78,0.56864628]
[1749048443960,2.54356886,155.86,155.78,0.56864628]
[1749048445755,26.0,155.85,155.78,0.56864628]
[1749048452281,2.54356886,155.86,155.78,0.56864628]
[1749048452873,2.54356886,155.86,155.8,0.56864628]
[1749048453186,2.54356886,155.86,155.82,0.56864628]
[1749048453557,2.54356886,155.86,155.85,19.21829514]
[1749048455172,2.4461765,155.99,155.87,18.64964886]
[1749048455376,2.4461765,155.99,155.9,0.14216157]
[1749048455582,2.4461765,155.99,155.92,0.42648471]
[1749048455766,2.4461765,155.99,155.92,0.56864628]
[1749048456184,0.8677765,155.99,155.94,0.56864628]
[1749048456584,0.8677765,155.99,155.96,0.42648471]
[1749048456770,0.8677765,155.99,155.98,0.42648471]
[1749048457285,0.8677765,155.99,155.98,19.21829514]
[1749048458690,0.8677765,155.99,155.98,0.42648471]
[1749048458893,0.8677765,155.99,155.98,0.28432314]
[1749048459264,0.8677765,155.99,155.98,0.42648471]
[1749048460394,0.8677765,155.99,155.98,19.21829514]
[1749048461386,0.8677765,155.99,155.98,0.56864628]
[1749048461600,0.8677765,155.99,155.98,0.14216157]
[1749048468511,0.8677765,155.99,155.94,19.21829514]
[1749048470833,0.8677765,155.99,155.88,4.75846391]
[1749048471119,0.8677765,155.99,155.92,18.933972]
[1749048471299,0.8677765,155.99,155.93,0.28432314]
[1749048471497,0.8677765,155.99,155.92,0.14216157]
[1749048471702,26.8677765,155.99,155.89,18.79181043]
[1749048472005,26.8677765,155.99,155.9,0.42648471]
[1749048472208,26.8677765,155.99,155.9,0.14216157]